[Event "German Bundesliga 2023-24"]
[Site "Germany"]
[Date "2024.02.04"]
[Round "7.7"]
[White "Jaracz, Pawel"]
[Black "Kovacevic, Aleksandar"]
[Result "0-1"]
[ECO "B90"]
[WhiteElo "2472"]
[BlackElo "2445"]
[Annotator "ChessBase"]
[PlyCount "84"]
[EventDate "2023.10.20"]
[EventType "team-tourn"]
[EventCountry "GER"]
[SourceTitle "playchess.com"]
[Source "ChessBase"]
[SourceQuality "1"]
[TimeControl "40/6000+30:3000+30"]

1. e4 {[%emt 0:00:14]} c5 {[%emt 0:00:41]} 2. Nf3 {[%emt 0:00:30]} d6 {[%emt 0:00:51]} 3. d4 {[%emt 0:00:25]} cxd4 {[%emt 0:00:05]} 4. Nxd4 {[%emt 0:00:04]} Nf6 {[%emt 0:00:13]} 5. Nc3 {[%emt 0:00:08]} a6 {[%emt 0:00:08]} 6. Be3 {[%emt 0:00:51]} e5 {[%emt 0:00:31]} 7. Nb3 {[%emt 0:00:18]} Be6 {[%emt 0:00:19]} 8. f3 {[%emt 0:00:49]} h5 {[%emt 0:00:51]} 9. Nd5 {[%emt 0:01:18]} Bxd5 {[%emt 0:00:43]} 10. exd5 {[%emt 0:00:06]} Nbd7 {[%emt 0:00:34]} 11. Qd2 {[%emt 0:00:34]} g6 {[%emt 0:00:19]} 12. O-O-O {[%emt 0:00:50]} Bg7 {[%emt 0:01:49]} 13. Kb1 {[%emt 0:02:50]} O-O {[%emt 0:14:27]} 14. Rg1 {[%emt 0:34:56]} Rc8 {[%emt 0:06:00]} 15. Qa5 {[%emt 0:08:03]} e4 {[%emt 0:14:31]} 16. Qxd8 {[%emt 0:01:20]} Rfxd8 {[%emt 0:00:40]} 17. Na5 {[%emt 0:00:44]} Rc7 {[%emt 0:03:15]} 18. Nc4 {[%emt 0:06:37]} Nc5 {[%emt 0:06:13]} 19. c3 {[%emt 0:08:00]} b5 {[%emt 0:17:17]} 20. Na5 {[%emt 0:00:48]} Nfd7 {[%emt 0:03:22]} 21. f4 {[%emt 0:03:35]} Re8 {[%emt 0:02:52]} 22. Be2 {[%emt 0:01:37]} Na4 {[%emt 0:09:48]} 23. Rc1 {[%emt 0:06:11]} Ndb6 {[%emt 0:05:51]} 24. Rgd1 {[%emt 0:03:00]} Nc4 {[%emt 0:00:33]} 25. Bxc4 {[%emt 0:01:49]} bxc4 {[%emt 0:00:05]} 26. Rc2 {[%emt 0:14:18]} Rb8 {[%emt 0:01:14]} 27. Bd4 {[%emt 0:01:00]} Rb5 {[%emt 0:01:23]} 28. Bxg7 {[%emt 0:00:08]} Kxg7 {[%emt 0:00:06]} 29. Nc6 {[%emt 0:00:13]} Rcb7 {[%emt 0:07:24]} 30. Kc1 {[%emt 0:01:58]} Nxb2 {[%emt 0:04:48]} 31. a4 {[%emt 0:00:20]} Nxa4 {[%emt 0:00:53]} 32. Rd4 {[%emt 0:00:10]} e3 {[%emt 0:00:47]} 33. Kd1 {[%emt 0:00:07]} Nb6 {[%emt 0:03:24]} 34. Ke2 {[%emt 0:00:19]} Nxd5 {[%emt 0:00:37]} 35. Rxc4 {[%emt 0:01:01]} Rb2 {[%emt 0:00:56]} 36. Nb4 {[%emt 0:00:09]} Rxc2+ {[%emt 0:02:14]} 37. Nxc2 {[%emt 0:00:04]} Rb2 {[%emt 0:00:19]} 38. Kd3 {[%emt 0:00:06]} e2 {[%emt 0:00:17]} 39. Ne1 {[%emt 0:00:05]} Kf6 {[%emt 0:02:52]} 40. g3 {[%emt 0:04:26]} Ke6 {[%emt 0:00:45]} 41. Re4+ {[%emt 0:50:17]} Kd7 {[%emt 0:50:15]} 42. Ra4 {[%emt 0:00:03]} Rb1 {[%emt 0:00:26]} 0-1

[Event "German Bundesliga 2023-24"]
[Site "Germany"]
[Date "2024.02.03"]
[Round "7.8"]
[White "Naumann, Alexander"]
[Black "Fromm, Marius"]
[Result "1-0"]
[ECO "A29"]
[WhiteElo "2498"]
[BlackElo "2435"]
[Annotator "ChessBase"]
[PlyCount "81"]
[EventDate "2023.10.20"]
[EventType "team-tourn"]
[EventCountry "GER"]
[SourceTitle "playchess.com"]
[Source "ChessBase"]
[SourceQuality "1"]
[TimeControl "40/6000+30:3000+30"]

1. c4 {[%emt 0:00:05]} e5 {[%emt 0:01:11]} 2. Nc3 {[%emt 0:00:08]} Nf6 {[%emt 0:00:07]} 3. Nf3 {[%emt 0:00:13]} Nc6 {[%emt 0:00:04]} 4. g3 {[%emt 0:00:32]} Bb4 {[%emt 0:00:42]} 5. Nd5 {[%emt 0:00:32]} Bc5 {[%emt 0:11:53]} 6. Bg2 {[%emt 0:01:49]} d6 {[%emt 0:03:49]} 7. O-O {[%emt 0:02:43]} O-O {[%emt 0:02:10]} 8. d3 {[%emt 0:06:06]} h6 {[%emt 0:02:12]} 9. Nxf6+ {[%emt 0:06:46]} Qxf6 {[%emt 0:00:23]} 10. Nd2 {[%emt 0:01:56]} Bb6 {[%emt 0:05:04]} 11. Rb1 {[%emt 0:04:58]} a5 {[%emt 0:01:39]} 12. Ne4 {[%emt 0:07:39]} Qd8 {[%emt 0:00:54]} 13. e3 {[%emt 0:04:44]} Bf5 {[%emt 0:18:56]} 14. a3 {[%emt 0:07:36]} Ne7 {[%emt 0:05:33]} 15. b4 {[%emt 0:05:45]} axb4 {[%emt 0:00:19]} 16. axb4 {[%emt 0:00:08]} Qd7 {[%emt 0:11:59]} 17. c5 {[%emt 0:15:14]} Ba7 {[%emt 0:00:57]} 18. Ra1 {[%emt 0:05:46]} d5 {[%emt 0:06:13]} 19. Nc3 {[%emt 0:01:17]} c6 {[%emt 0:00:53]} 20. d4 {[%emt 0:12:34]} e4 {[%emt 0:06:44]} 21. b5 {[%emt 0:01:05]} b6 {[%emt 0:02:49]} 22. cxb6 {[%emt 0:05:04]} Bxb6 {[%emt 0:00:03]} 23. Ba3 {[%emt 0:01:55]} cxb5 {[%emt 0:04:58]} 24. Qb3 {[%emt 0:01:24]} Ba5 {[%emt 0:03:37]} 25. Bxe7 {[%emt 0:05:11]} Bxc3 {[%emt 0:03:20]} 26. Bxf8 {[%emt 0:00:40]} Rxa1 {[%emt 0:00:11]} 27. Rxa1 {[%emt 0:03:35]} Bxa1 {[%emt 0:00:05]} 28. Bc5 {[%emt 0:00:39]} Bh3 {[%emt 0:08:35]} 29. Bxh3 {[%emt 0:01:47]} Qxh3 {[%emt 0:00:08]} 30. Qa3 {[%emt 0:00:09]} Bxd4 {[%emt 0:00:16]} 31. Bxd4 {[%emt 0:00:21]} Qg4 {[%emt 0:01:45]} 32. Qb3 {[%emt 0:02:50]} Qe2 {[%emt 0:00:12]} 33. h3 {[%emt 0:00:28]} Kh7 {[%emt 0:02:55]} 34. Qxd5 {[%emt 0:01:55]} Qd1+ {[%emt 0:00:09]} 35. Kg2 {[%emt 0:00:19]} Qf3+ {[%emt 0:00:05]} 36. Kg1 {[%emt 0:00:07]} Qd1+ {[%emt 0:00:03]} 37. Kh2 {[%emt 0:00:06]} Qf3 {[%emt 0:00:03]} 38. Qa2 {[%emt 0:00:11]} b4 {[%emt 0:00:03]} 39. Qd2 {[%emt 0:01:45]} b3 {[%emt 0:00:46]} 40. Bb2 {[%emt 0:00:51]} h5 {[%emt 0:00:35]} 41. h4 {[%emt 0:52:56]} 1-0

[Event "German Bundesliga 2023-24"]
[Site "Germany"]
[Date "2024.02.04"]
[Round "7.8"]
[White "Zelcic, Robert"]
[Black "Geirnaert, Steven"]
[Result "0-1"]
[ECO "C83"]
[WhiteElo "2476"]
[BlackElo "2432"]
[Annotator "ChessBase"]
[PlyCount "104"]
[EventDate "2023.10.20"]
[EventType "team-tourn"]
[EventCountry "GER"]
[SourceTitle "playchess.com"]
[Source "ChessBase"]
[SourceQuality "1"]
[TimeControl "40/6000+30:3000+30"]

1. e4 {[%emt 0:00:03]} e5 {[%emt 0:00:04]} 2. Nf3 {[%emt 0:00:07]} Nc6 {[%emt 0:00:02]} 3. Bb5 {[%emt 0:01:08]} a6 {[%emt 0:00:06]} 4. Ba4 {[%emt 0:00:07]} Nf6 {[%emt 0:00:19]} 5. O-O {[%emt 0:02:14]} Nxe4 {[%emt 0:00:10]} 6. d4 {[%emt 0:00:14]} b5 {[%emt 0:00:08]} 7. Bb3 {[%emt 0:00:09]} d5 {[%emt 0:00:06]} 8. dxe5 {[%emt 0:00:58]} Be6 {[%emt 0:00:03]} 9. Be3 {[%emt 0:01:58]} Be7 {[%emt 0:00:28]} 10. c3 {[%emt 0:00:13]} Nc5 {[%emt 0:00:18]} 11. Bc2 {[%emt 0:03:23]} Nd7 {[%emt 0:00:08]} 12. Nbd2 {[%emt 0:01:06]} Ndxe5 {[%emt 0:00:09]} 13. Nxe5 {[%emt 0:08:39]} Nxe5 {[%emt 0:00:03]} 14. Bd4 {[%emt 0:00:05]} Ng4 {[%emt 0:03:04]} 15. Bxg7 {[%emt 0:00:41]} Rg8 {[%emt 0:02:14]} 16. Bd4 {[%emt 0:00:06]} Bd6 {[%emt 0:13:36]} 17. Nf3 {[%emt 0:18:22]} Nxh2 {[%emt 0:12:17]} 18. Re1 {[%emt 0:00:48]} Nxf3+ {[%emt 0:06:30]} 19. Qxf3 {[%emt 0:00:05]} Qh4 {[%emt 0:00:13]} 20. Be5 {[%emt 0:09:09]} O-O-O {[%emt 0:12:45]} 21. a4 {[%emt 0:00:57]} Rg5 {[%emt 0:12:46]} 22. Bxd6 {[%emt 0:04:03]} Rh5 {[%emt 0:05:23]} 23. g3 {[%emt 0:12:46]} Qh2+ {[%emt 0:01:58]} 24. Kf1 {[%emt 0:00:01]} Rxd6 {[%emt 0:02:05]} 25. Ke2 {[%emt 0:01:49]} Re5+ {[%emt 0:05:52]} 26. Kd2 {[%emt 0:00:09]} Qh6+ {[%emt 0:00:40]} 27. Qf4 {[%emt 0:00:06]} Qxf4+ {[%emt 0:01:03]} 28. gxf4 {[%emt 0:00:02]} Rxe1 {[%emt 0:00:11]} 29. Rxe1 {[%emt 0:00:28]} h6 {[%emt 0:01:04]} 30. axb5 {[%emt 0:05:32]} axb5 {[%emt 0:00:07]} 31. f5 {[%emt 0:04:52]} Bd7 {[%emt 0:00:09]} 32. Ke3 {[%emt 0:00:07]} c5 {[%emt 0:04:25]} 33. Kf4 {[%emt 0:00:11]} d4 {[%emt 0:04:15]} 34. Re5 {[%emt 0:02:13]} c4 {[%emt 0:14:06]} 35. cxd4 {[%emt 0:00:10]} Rxd4+ {[%emt 0:00:14]} 36. Ke3 {[%emt 0:00:01]} Rd6 {[%emt 0:00:18]} 37. b3 {[%emt 0:01:24]} cxb3 {[%emt 0:03:51]} 38. Bxb3 {[%emt 0:00:01]} f6 {[%emt 0:02:05]} 39. Rc5+ {[%emt 0:03:03]} Kb7 {[%emt 0:01:16]} 40. Bf7 {[%emt 0:01:03]} Kb6 {[%emt 0:01:51]} 41. Rc1 {[%emt 0:50:02]} Bxf5 {[%emt 0:52:49]} 42. Rh1 {[%emt 0:00:41]} Rd7 {[%emt 0:01:47]} 43. Kf4 {[%emt 0:00:01]} Rxf7 {[%emt 0:00:00]} 44. Kxf5 {[%emt 0:00:00]} b4 {[%emt 0:00:00]} 45. Ke6 {[%emt 0:00:00]} Rf8 {[%emt 0:00:00]} 46. Ke7 {[%emt 0:00:00]} Rc8 {[%emt 0:00:00]} 47. Rxh6 {[%emt 0:00:00]} Rc6 {[%emt 0:00:00]} 48. Kd7 {[%emt 0:00:00]} Kb7 {[%emt 0:00:00]} 49. f4 {[%emt 0:00:00]} b3 {[%emt 0:00:00]} 50. Rh1 {[%emt 0:00:00]} f5 {[%emt 0:00:00]} 51. Rb1 {[%emt 0:00:00]} Rb6 {[%emt 0:00:00]} 52. Rb2 {[%emt 0:00:00]} Ka6 {[%emt 0:00:00]} 0-1

[Event "German Bundesliga 2023-24"]
[Site "Germany"]
[Date "2024.02.03"]
[Round "7.8"]
[White "Moehn, Hans"]
[Black "Movsesian, Sergei"]
[Result "0-1"]
[ECO "A13"]
[WhiteElo "2392"]
[BlackElo "2605"]
[Annotator "ChessBase"]
[PlyCount "68"]
[EventDate "2023.10.20"]
[EventType "team-tourn"]
[EventCountry "GER"]
[SourceTitle "playchess.com"]
[Source "ChessBase"]
[SourceQuality "1"]
[TimeControl "40/6000+30:3000+30"]

1. Nf3 {[%emt 0:00:05]} d5 {[%emt 0:00:21]} 2. g3 {[%emt 0:00:17]} e6 {[%emt 0:01:33]} 3. Bg2 {[%emt 0:00:39]} Nf6 {[%emt 0:01:20]} 4. O-O {[%emt 0:00:24]} c5 {[%emt 0:00:31]} 5. c4 {[%emt 0:01:18]} d4 {[%emt 0:01:27]} 6. e3 {[%emt 0:00:53]} Nc6 {[%emt 0:00:38]} 7. d3 {[%emt 0:00:27]} Bd6 {[%emt 0:01:05]} 8. exd4 {[%emt 0:00:21]} cxd4 {[%emt 0:00:06]} 9. Bg5 {[%emt 0:00:31]} h6 {[%emt 0:00:38]} 10. Bxf6 {[%emt 0:00:15]} Qxf6 {[%emt 0:00:06]} 11. Nbd2 {[%emt 0:00:27]} Qe7 {[%emt 0:00:30]} 12. Nb3 {[%emt 0:13:47]} e5 {[%emt 0:01:13]} 13. Re1 {[%emt 0:00:59]} Bg4 {[%emt 0:00:29]} 14. h3 {[%emt 0:03:42]} Be6 {[%emt 0:03:23]} 15. Nfd2 {[%emt 0:07:26]} O-O {[%emt 0:08:30]} 16. Rc1 {[%emt 0:01:26]} a5 {[%emt 0:19:10]} 17. c5 {[%emt 0:04:50]} Bc7 {[%emt 0:03:12]} 18. a4 {[%emt 0:20:53]} Qd7 {[%emt 0:05:09]} 19. Kh2 {[%emt 0:06:23]} Nb4 {[%emt 0:05:51]} 20. c6 {[%emt 0:04:56]} bxc6 {[%emt 0:01:54]} 21. Nc5 {[%emt 0:00:13]} Qe7 {[%emt 0:02:18]} 22. Nxe6 {[%emt 0:04:33]} Qxe6 {[%emt 0:00:17]} 23. Ne4 {[%emt 0:07:38]} f5 {[%emt 0:06:37]} 24. Nc5 {[%emt 0:00:27]} Qf7 {[%emt 0:00:07]} 25. Qf3 {[%emt 0:09:11]} Rae8 {[%emt 0:05:07]} 26. Kg1 {[%emt 0:00:18]} Bd6 {[%emt 0:04:37]} 27. h4 {[%emt 0:03:28]} Qa7 {[%emt 0:02:38]} 28. Nb3 {[%emt 0:01:00]} e4 {[%emt 0:02:31]} 29. dxe4 {[%emt 0:01:38]} fxe4 {[%emt 0:00:27]} 30. Qh5 {[%emt 0:04:22]} e3 {[%emt 0:05:58]} 31. fxe3 {[%emt 0:06:18]} Bxg3 {[%emt 0:02:23]} 32. Re2 {[%emt 0:01:50]} d3 {[%emt 0:00:44]} 33. Rd2 {[%emt 0:00:09]} Qxe3+ {[%emt 0:01:52]} 34. Kh1 {[%emt 0:00:05]} Rf4 {[%emt 0:01:45]} 0-1

[Event "German Bundesliga 2023-24"]
[Site "Germany"]
[Date "2024.02.03"]
[Round "7.9"]
[White "Svane, Rasmus"]
[Black "Navara, David"]
[Result "1/2-1/2"]
[ECO "C67"]
[WhiteElo "2646"]
[BlackElo "2679"]
[Annotator "ChessBase"]
[PlyCount "62"]
[EventDate "2023.10.20"]
[EventType "team-tourn"]
[EventCountry "GER"]
[SourceTitle "playchess.com"]
[Source "ChessBase"]
[SourceQuality "1"]
[TimeControl "40/6000+30:3000+30"]

1. e4 {[%emt 0:00:04]} e5 {[%emt 0:01:05]} 2. Nf3 {[%emt 0:00:20]} Nc6 {[%emt 0:00:04]} 3. Bb5 {[%emt 0:01:38]} Nf6 {[%emt 0:00:07]} 4. O-O {[%emt 0:01:44]} Nxe4 {[%emt 0:00:05]} 5. Re1 {[%emt 0:00:52]} Nd6 {[%emt 0:00:04]} 6. Nxe5 {[%emt 0:00:10]} Be7 {[%emt 0:00:07]} 7. Bf1 {[%emt 0:00:08]} Nxe5 {[%emt 0:00:07]} 8. Rxe5 {[%emt 0:00:06]} O-O {[%emt 0:00:07]} 9. d4 {[%emt 0:03:15]} Bf6 {[%emt 0:00:23]} 10. Re1 {[%emt 0:00:12]} Re8 {[%emt 0:00:04]} 11. Bf4 {[%emt 0:06:20]} Rxe1 {[%emt 0:00:32]} 12. Qxe1 {[%emt 0:00:03]} Ne8 {[%emt 0:00:14]} 13. Nc3 {[%emt 0:07:36]} Bxd4 {[%emt 0:00:29]} 14. Nd5 {[%emt 0:00:05]} d6 {[%emt 0:00:24]} 15. Bg5 {[%emt 0:00:37]} f6 {[%emt 0:00:12]} 16. Be3 {[%emt 0:00:05]} Be5 {[%emt 0:01:19]} 17. f4 {[%emt 0:00:30]} Bxb2 {[%emt 0:00:22]} 18. Rb1 {[%emt 0:00:05]} c6 {[%emt 0:23:16]} 19. Bc4 {[%emt 0:03:35]} cxd5 {[%emt 0:00:17]} 20. Bxd5+ {[%emt 0:00:07]} Kh8 {[%emt 0:00:25]} 21. Rxb2 {[%emt 0:00:10]} Nc7 {[%emt 0:00:27]} 22. Bxb7 {[%emt 0:10:54]} Rb8 {[%emt 0:00:47]} 23. Qb1 {[%emt 0:04:50]} Nd5 {[%emt 0:07:08]} 24. Bxd5 {[%emt 0:45:51]} Rxb2 {[%emt 0:00:28]} 25. Qxb2 {[%emt 0:00:06]} Qa5 {[%emt 0:00:08]} 26. h3 {[%emt 0:04:10]} Qxd5 {[%emt 0:15:03]} 27. Bxa7 {[%emt 0:00:18]} h5 {[%emt 0:00:46]} 28. c3 {[%emt 0:04:01]} Be6 {[%emt 0:06:10]} 29. Qe2 {[%emt 0:04:00]} Bf7 {[%emt 0:04:33]} 30. Bd4 {[%emt 0:08:19]} Qxa2 {[%emt 0:00:29]} 31. Qxa2 {[%emt 0:00:04]} Bxa2 {[%emt 0:00:10]} 1/2-1/2

[Event "German Bundesliga 2023-24"]
[Site "Germany"]
[Date "2024.02.03"]
[Round "7.9"]
[White "Abasov, Nijat"]
[Black "Pfreundt, Jakob"]
[Result "1-0"]
[ECO "C41"]
[WhiteElo "2641"]
[BlackElo "2455"]
[Annotator "ChessBase"]
[PlyCount "85"]
[EventDate "2023.10.20"]
[EventType "team-tourn"]
[EventCountry "GER"]
[SourceTitle "playchess.com"]
[Source "ChessBase"]
[SourceQuality "1"]
[TimeControl "40/6000+30:3000+30"]

1. d4 {[%emt 0:00:12]} d6 {[%emt 0:02:01]} 2. e4 {[%emt 0:01:24]} Nf6 {[%emt 0:00:15]} 3. Nc3 {[%emt 0:00:08]} e5 {[%emt 0:00:24]} 4. Nf3 {[%emt 0:00:08]} Nbd7 {[%emt 0:00:12]} 5. Bc4 {[%emt 0:00:25]} h6 {[%emt 0:00:27]} 6. a4 {[%emt 0:01:48]} Be7 {[%emt 0:01:27]} 7. O-O {[%emt 0:01:37]} c6 {[%emt 0:01:05]} 8. Re1 {[%emt 0:02:24]} O-O {[%emt 0:00:18]} 9. a5 {[%emt 0:06:16]} exd4 {[%emt 0:31:53]} 10. Nxd4 {[%emt 0:10:31]} Ne5 {[%emt 0:00:18]} 11. Bf1 {[%emt 0:01:26]} Bg4 {[%emt 0:01:01]} 12. f3 {[%emt 0:06:08]} Bd7 {[%emt 0:01:10]} 13. Nf5 {[%emt 0:08:47]} Bxf5 {[%emt 0:02:19]} 14. exf5 {[%emt 0:00:07]} Re8 {[%emt 0:06:00]} 15. Bf4 {[%emt 0:05:21]} b5 {[%emt 0:20:12]} 16. Kh1 {[%emt 0:14:51]} Qd7 {[%emt 0:26:57]} 17. g4 {[%emt 0:02:20]} Qc7 {[%emt 0:01:58]} 18. Bg3 {[%emt 0:16:56]} Bf8 {[%emt 0:00:52]} 19. Bg2 {[%emt 0:09:11]} d5 {[%emt 0:02:56]} 20. b3 {[%emt 0:02:59]} Bd6 {[%emt 0:00:48]} 21. Qd2 {[%emt 0:00:08]} Ned7 {[%emt 0:02:51]} 22. Ne2 {[%emt 0:02:51]} Re7 {[%emt 0:00:36]} 23. Nf4 {[%emt 0:02:14]} Rae8 {[%emt 0:01:44]} 24. Rxe7 {[%emt 0:00:26]} Rxe7 {[%emt 0:00:02]} 25. h4 {[%emt 0:00:33]} Nh7 {[%emt 0:04:27]} 26. Rg1 {[%emt 0:01:48]} Qd8 {[%emt 0:00:29]} 27. Bh3 Ne5 {[%emt 0:00:30]} 28. Kh2 Re8 {[%emt 0:00:30]} 29. Bg2 b4 {[%emt 0:00:30]} 30. a6 Qa5 {[%emt 0:00:30]} 31. Re1 Qd8 {[%emt 0:00:30]} 32. Nh5 Qc7 {[%emt 0:00:30]} 33. f4 Nd3 {[%emt 0:00:30]} 34. g5 Nc5 {[%emt 0:00:30]} 35. Qd4 f6 {[%emt 0:00:30]} 36. gxf6 Nxf6 {[%emt 0:00:30]} 37. Nxf6+ gxf6 {[%emt 0:00:30]} 38. Qxf6 Qg7 {[%emt 0:00:30]} 39. Qg6 Qxg6 {[%emt 0:00:30]} 40. fxg6 Ne4 {[%emt 0:00:30]} 41. Bxe4 Kf8 {[%emt 0:50:30]} 42. Bd3 Kg7 {[%emt 0:00:30]} 43. f5 1-0

[Event "German Bundesliga 2023-24"]
[Site "Germany"]
[Date "2024.02.04"]
[Round "7.9"]
[White "Livaic, Leon"]
[Black "Ivic, Velimir"]
[Result "0-1"]
[ECO "E61"]
[WhiteElo "2549"]
[BlackElo "2562"]
[Annotator "ChessBase"]
[PlyCount "78"]
[EventDate "2023.10.20"]
[EventType "team-tourn"]
[EventCountry "GER"]
[SourceTitle "playchess.com"]
[Source "ChessBase"]
[SourceQuality "1"]
[TimeControl "40/6000+30:3000+30"]

1. Nf3 {[%emt 0:00:09]} Nf6 {[%emt 0:00:44]} 2. e3 {[%emt 0:00:48]} g6 {[%emt 0:02:04]} 3. c4 {[%emt 0:01:21]} Bg7 {[%emt 0:01:02]} 4. d4 {[%emt 0:00:19]} d6 {[%emt 0:01:29]} 5. Nc3 {[%emt 0:00:41]} O-O {[%emt 0:01:09]} 6. Be2 {[%emt 0:00:05]} c5 {[%emt 0:03:57]} 7. O-O {[%emt 0:04:17]} cxd4 {[%emt 0:02:39]} 8. exd4 {[%emt 0:00:21]} d5 {[%emt 0:01:22]} 9. cxd5 {[%emt 0:08:21]} Nxd5 {[%emt 0:00:30]} 10. Qb3 {[%emt 0:01:20]} Nb6 {[%emt 0:00:54]} 11. Rd1 {[%emt 0:01:08]} Bg4 {[%emt 0:26:33]} 12. Be3 {[%emt 0:29:29]} Nc6 {[%emt 0:05:56]} 13. a4 {[%emt 0:07:06]} Na5 {[%emt 0:16:07]} 14. Qb5 {[%emt 0:01:55]} Bxf3 {[%emt 0:01:46]} 15. Bxf3 {[%emt 0:00:27]} Nbc4 {[%emt 0:01:18]} 16. Bf4 {[%emt 0:06:42]} Nd6 {[%emt 0:09:43]} 17. Bxd6 {[%emt 0:05:53]} exd6 {[%emt 0:00:14]} 18. Rac1 {[%emt 0:09:22]} Rc8 {[%emt 0:07:24]} 19. Ne2 {[%emt 0:01:45]} Nc6 {[%emt 0:09:35]} 20. Qxb7 {[%emt 0:03:58]} Nxd4 {[%emt 0:00:20]} 21. Nxd4 {[%emt 0:01:05]} Rxc1 {[%emt 0:00:10]} 22. Rxc1 {[%emt 0:00:02]} Bxd4 {[%emt 0:00:07]} 23. b4 {[%emt 0:04:05]} Qf6 {[%emt 0:03:27]} 24. Rd1 {[%emt 0:04:01]} Re8 {[%emt 0:01:47]} 25. a5 {[%emt 0:05:36]} h5 {[%emt 0:03:17]} 26. b5 {[%emt 0:08:00]} Bc5 {[%emt 0:01:37]} 27. Qc6 {[%emt 0:04:19]} Re7 {[%emt 0:00:11]} 28. Rf1 {[%emt 0:00:31]} Qb2 {[%emt 0:05:39]} 29. g3 {[%emt 0:00:28]} Re1 {[%emt 0:00:32]} 30. Rxe1 {[%emt 0:00:03]} Qxf2+ {[%emt 0:00:04]} 31. Kh1 {[%emt 0:00:03]} Qxe1+ {[%emt 0:00:06]} 32. Kg2 {[%emt 0:00:02]} Qxa5 {[%emt 0:02:59]} 33. h4 {[%emt 0:00:09]} Qd2+ {[%emt 0:00:39]} 34. Kh3 {[%emt 0:00:03]} Kg7 {[%emt 0:00:33]} 35. Qe4 {[%emt 0:00:18]} Qc3 {[%emt 0:00:48]} 36. Be2 {[%emt 0:00:28]} Qe5 {[%emt 0:00:29]} 37. Qf3 {[%emt 0:00:51]} d5 {[%emt 0:01:08]} 38. Bf1 {[%emt 0:00:14]} Bd6 {[%emt 0:00:22]} 39. Qd3 {[%emt 0:00:46]} Qe4 {[%emt 0:00:30]} 0-1

[Event "German Bundesliga 2023-24"]
[Site "Germany"]
[Date "2024.02.03"]
[Round "7.10"]
[White "Nguyen, Thai Dai Van"]
[Black "Svane, Frederik"]
[Result "1/2-1/2"]
[ECO "E06"]
[WhiteElo "2632"]
[BlackElo "2626"]
[Annotator "ChessBase"]
[PlyCount "118"]
[EventDate "2023.10.20"]
[EventType "team-tourn"]
[EventCountry "GER"]
[SourceTitle "playchess.com"]
[Source "ChessBase"]
[SourceQuality "1"]
[TimeControl "40/6000+30:3000+30"]

1. c4 {[%emt 0:00:06]} e6 {[%emt 0:00:09]} 2. g3 {[%emt 0:00:50]} d5 {[%emt 0:00:47]} 3. Bg2 {[%emt 0:00:06]} Nf6 {[%emt 0:01:27]} 4. Nf3 {[%emt 0:00:08]} Be7 {[%emt 0:01:16]} 5. d4 {[%emt 0:00:57]} O-O {[%emt 0:00:14]} 6. Nc3 {[%emt 0:00:07]} Nc6 {[%emt 0:00:36]} 7. Ne5 {[%emt 0:00:44]} Nxe5 {[%emt 0:00:23]} 8. dxe5 {[%emt 0:00:07]} Nd7 {[%emt 0:00:06]} 9. cxd5 {[%emt 0:08:09]} Nxe5 {[%emt 0:00:11]} 10. O-O {[%emt 0:01:10]} exd5 {[%emt 0:00:10]} 11. Nxd5 {[%emt 0:05:22]} Bd6 {[%emt 0:00:06]} 12. Nc3 {[%emt 0:06:33]} c6 {[%emt 0:04:18]} 13. Bg5 {[%emt 0:02:48]} Be7 {[%emt 0:03:06]} 14. Qxd8 {[%emt 0:01:23]} Bxd8 {[%emt 0:00:05]} 15. Bf4 {[%emt 0:00:16]} Ng6 {[%emt 0:04:01]} 16. Bd6 {[%emt 0:11:38]} Re8 {[%emt 0:01:14]} 17. Rfd1 {[%emt 0:24:37]} f5 {[%emt 0:15:33]} 18. Rac1 {[%emt 0:04:00]} Bf6 {[%emt 0:01:25]} 19. b4 {[%emt 0:08:23]} Be6 {[%emt 0:11:25]} 20. b5 {[%emt 0:02:46]} Rac8 {[%emt 0:00:09]} 21. bxc6 {[%emt 0:00:37]} bxc6 {[%emt 0:00:02]} 22. Bc5 {[%emt 0:02:46]} Red8 {[%emt 0:19:35]} 23. Rxd8+ {[%emt 0:05:32]} Rxd8 {[%emt 0:00:05]} 24. f4 {[%emt 0:01:01]} Ne7 {[%emt 0:13:36]} 25. Bxa7 {[%emt 0:01:36]} Bxc3 {[%emt 0:12:12]} 26. Rxc3 {[%emt 0:00:54]} Bxa2 {[%emt 0:00:07]} 27. Bc5 {[%emt 0:03:15]} Nd5 {[%emt 0:06:28]} 28. Rc2 {[%emt 0:03:40]} Bb3 {[%emt 0:00:28]} 29. Rb2 {[%emt 0:01:59]} Bc4 {[%emt 0:00:48]} 30. Rc2 {[%emt 0:03:33]} Bb3 {[%emt 0:01:49]} 31. Rc1 {[%emt 0:02:37]} h6 {[%emt 0:06:08]} 32. Bh3 {[%emt 0:02:01]} g6 {[%emt 0:00:10]} 33. e4 {[%emt 0:01:19]} fxe4 {[%emt 0:04:33]} 34. Be6+ {[%emt 0:00:02]} Kg7 {[%emt 0:01:39]} 35. Bd4+ {[%emt 0:01:26]} Kf8 {[%emt 0:01:02]} 36. Rxc6 {[%emt 0:01:07]} Ke8 {[%emt 0:00:32]} 37. Bc5 {[%emt 0:04:07]} Ba4 {[%emt 0:00:55]} 38. Ra6 {[%emt 0:00:23]} Nc7 {[%emt 0:00:05]} 39. Rxa4 {[%emt 0:00:17]} Nxe6 {[%emt 0:00:33]} 40. Rxe4 {[%emt 0:00:17]} Kf7 {[%emt 0:00:07]} 41. Be3 {[%emt 0:50:08]} Rd1+ {[%emt 0:03:23]} 42. Kg2 {[%emt 0:00:00]} Re1 {[%emt 0:00:20]} 43. Kf3 {[%emt 0:00:00]} Rh1 {[%emt 0:00:16]} 44. Kg2 {[%emt 0:00:00]} Re1 {[%emt 0:00:11]} 45. h3 {[%emt 0:00:00]} Nc5 {[%emt 0:01:13]} 46. Rc4 {[%emt 0:00:00]} Rxe3 {[%emt 0:00:05]} 47. Rxc5 {[%emt 0:00:00]} h5 {[%emt 0:02:42]} 48. Rc7+ {[%emt 0:00:00]} Kf6 {[%emt 0:00:33]} 49. g4 {[%emt 0:00:00]} hxg4 {[%emt 0:00:26]} 50. hxg4 {[%emt 0:00:00]} Ra3 {[%emt 0:00:26]} 51. Kf2 {[%emt 0:00:00]} Rb3 {[%emt 0:00:51]} 52. Rc5 {[%emt 0:00:00]} Ra3 {[%emt 0:00:29]} 53. Re5 {[%emt 0:00:00]} Rb3 {[%emt 0:01:40]} 54. Re3 {[%emt 0:00:00]} Rb1 {[%emt 0:02:11]} 55. Ra3 {[%emt 0:00:00]} Rc1 {[%emt 0:02:28]} 56. Ra6+ {[%emt 0:00:00]} Kf7 {[%emt 0:00:10]} 57. Kg3 {[%emt 0:00:00]} Rc4 {[%emt 0:04:23]} 58. Ra7+ {[%emt 0:00:00]} Kg8 {[%emt 0:00:29]} 59. Kf3 {[%emt 0:00:00]} Rb4 {[%emt 0:00:36]} 1/2-1/2